[Event "Titled Tuesday Blitz July 11 Late 2023"]
[White "Matinian, Nikita"]
[Black "Al Mukhaini, Shima"]
[WhiteFideId "24129100"]
[BlackFideId "22005854"]
[WhiteElo "2719"]
[BlackElo "2380"]
[Result "0-1"]
[Round "11"]
[TimeControl "180+2"]
[Date "2023.07.11"]
[WhiteClock "0:00:02"]
[BlackClock "0:00:06"]
[Board "26"]

1. e4 {[%clk 0:03:00]}  d5 {[%clk 0:02:59]} 2. exd5 {[%clk 0:03:00]}  Nf6 {[%clk 0:03:00]} 3. d4 {[%clk 0:02:59]}  Bg4 {[%clk 0:03:00]} 4. Be2 {[%clk 0:02:59]}  Bxe2 {[%clk 0:03:00]} 5. Nxe2 {[%clk 0:02:59]}  Qxd5 {[%clk 0:03:01]} 6. O-O {[%clk 0:02:55]}  Nc6 {[%clk 0:03:01]} 7. Nbc3 {[%clk 0:02:54]}  Qh5 {[%clk 0:03:00]} 8. Nf4 {[%clk 0:02:51]}  Qxd1 {[%clk 0:03:00]} 9. Rxd1 {[%clk 0:02:52]}  e6 {[%clk 0:02:57]} 10. d5 {[%clk 0:02:51]}  exd5 {[%clk 0:02:56]} 11. Nfxd5 {[%clk 0:02:51]}  O-O-O {[%clk 0:02:56]} 12. Bg5 {[%clk 0:02:40]}  Nxd5 {[%clk 0:02:33]} 13. Nxd5 {[%clk 0:02:35]}  f6 {[%clk 0:02:28]} 14. Bf4 {[%clk 0:02:35]}  Bd6 {[%clk 0:02:27]} 15. h4 {[%clk 0:02:28]}  Bxf4 {[%clk 0:02:17]} 16. Nxf4 {[%clk 0:02:29]}  Rxd1+ {[%clk 0:02:17]} 17. Rxd1 {[%clk 0:02:29]}  Re8 {[%clk 0:02:17]} 18. Kf1 {[%clk 0:02:26]}  g6 {[%clk 0:02:04]} 19. c3 {[%clk 0:02:24]}  Re7 {[%clk 0:02:00]} 20. f3 {[%clk 0:02:01]}  Nd8 {[%clk 0:01:45]} 21. g4 {[%clk 0:01:57]}  Nf7 {[%clk 0:01:39]} 22. Kf2 {[%clk 0:01:56]}  c6 {[%clk 0:01:36]} 23. Ne2 {[%clk 0:01:37]}  Rd7 {[%clk 0:01:32]} 24. Rxd7 {[%clk 0:01:36]}  Kxd7 {[%clk 0:01:33]} 25. Ke3 {[%clk 0:01:36]}  Kd6 {[%clk 0:01:27]} 26. Ng3 {[%clk 0:01:36]}  b6 {[%clk 0:01:18]} 27. a4 {[%clk 0:01:29]}  a5 {[%clk 0:01:17]} 28. b3 {[%clk 0:01:29]}  Ke6 {[%clk 0:01:15]} 29. f4 {[%clk 0:01:22]}  Nd6 {[%clk 0:01:13]} 30. Ne4 {[%clk 0:01:10]}  c5 {[%clk 0:01:11]} 31. Nd2 {[%clk 0:00:44]}  Kd5 {[%clk 0:01:07]} 32. c4+ {[%clk 0:00:42]}  Ke6 {[%clk 0:01:07]} 33. Nb1 {[%clk 0:00:29]}  h5 {[%clk 0:01:07]} 34. f5+ {[%clk 0:00:25]}  Kf7 {[%clk 0:01:03]} 35. fxg6+ {[%clk 0:00:25]}  Kxg6 {[%clk 0:01:04]} 36. gxh5+ {[%clk 0:00:20]}  Kxh5 {[%clk 0:01:05]} 37. Nc3 {[%clk 0:00:21]}  Kxh4 {[%clk 0:00:55]} 38. Kf4 {[%clk 0:00:21]}  Kh3 {[%clk 0:00:29]} 39. Nd5 {[%clk 0:00:21]}  Kg2 {[%clk 0:00:29]} 40. Nxb6 {[%clk 0:00:18]}  Kf2 {[%clk 0:00:29]} 41. Nd7 {[%clk 0:00:16]}  Ke2 {[%clk 0:00:28]} 42. Nxc5 {[%clk 0:00:12]}  Kd1 {[%clk 0:00:23]} 43. Ne4 {[%clk 0:00:12]}  Ne8 {[%clk 0:00:22]} 44. c5 {[%clk 0:00:10]}  Kc2 {[%clk 0:00:22]} 45. c6 {[%clk 0:00:08]}  Nc7 {[%clk 0:00:19]} 46. Nxf6 {[%clk 0:00:07]}  Kxb3 {[%clk 0:00:18]} 47. Ke5 {[%clk 0:00:08]}  Kxa4 {[%clk 0:00:18]} 48. Kd6 {[%clk 0:00:08]}  Na6 {[%clk 0:00:19]} 49. Nd5 {[%clk 0:00:07]}  Kb3 {[%clk 0:00:15]} 50. Ne7 {[%clk 0:00:02]}  a4 {[%clk 0:00:14]} 51. Nf5 {[%clk 0:00:03]}  Kc3 {[%clk 0:00:12]} 52. Ne7 {[%clk 0:00:03]}  a3 {[%clk 0:00:12]} 53. Nd5+ {[%clk 0:00:03]}  Kb3 {[%clk 0:00:12]} 54. Nc7 {[%clk 0:00:02]}  Nb8 {[%clk 0:00:10]} 55. Nb5 {[%clk 0:00:02]}  a2 {[%clk 0:00:08]} 56. c7 {[%clk 0:00:03]}  Na6 {[%clk 0:00:06]} 57. c8=Q {[%clk 0:00:03]}  a1=Q {[%clk 0:00:07]} 58. Qb7 {[%clk 0:00:03]}  Qf6+ {[%clk 0:00:06]} 59. Kd7 {[%clk 0:00:03]}  Nc5+ {[%clk 0:00:06]} 60. Kc7 {[%clk 0:00:02]}  Nxb7 {[%clk 0:00:06]} 61. Kxb7 {[%clk 0:00:02]}  Kb4 {[%clk 0:00:06]} 0-1


[Site "https://www.chess.com"]

[Event "Titled Tuesday Blitz July 11 Late 2023"]
[White "Pranav, V"]
[Black "Seletsky, Grigory"]
[WhiteFideId "25060783"]
[BlackFideId "14112191"]
[WhiteElo "2923"]
[BlackElo "2468"]
[Result "1-0"]
[Round "11"]
[TimeControl "180+2"]
[Date "2023.07.11"]
[WhiteClock "0:00:45"]
[BlackClock "0:00:12"]
[Board "27"]

1. a3 {[%clk 0:02:55]}  e5 {[%clk 0:02:58]} 2. c4 {[%clk 0:02:54]}  f5 {[%clk 0:02:57]} 3. Nc3 {[%clk 0:02:54]}  Nf6 {[%clk 0:02:57]} 4. d3 {[%clk 0:02:54]}  a5 {[%clk 0:02:55]} 5. g3 {[%clk 0:02:54]}  Nc6 {[%clk 0:02:55]} 6. Bg2 {[%clk 0:02:55]}  Bc5 {[%clk 0:02:56]} 7. Nh3 {[%clk 0:02:55]}  d6 {[%clk 0:02:55]} 8. e3 {[%clk 0:02:55]}  O-O {[%clk 0:02:55]} 9. O-O {[%clk 0:02:55]}  h6 {[%clk 0:02:55]} 10. Nd5 {[%clk 0:02:55]}  Nxd5 {[%clk 0:02:50]} 11. cxd5 {[%clk 0:02:56]}  Ne7 {[%clk 0:02:49]} 12. Bd2 {[%clk 0:02:53]}  Bb6 {[%clk 0:02:48]} 13. Kh1 {[%clk 0:02:51]}  Kh8 {[%clk 0:02:47]} 14. Rc1 {[%clk 0:02:49]}  Bd7 {[%clk 0:02:41]} 15. f4 {[%clk 0:02:48]}  Ng6 {[%clk 0:02:37]} 16. fxe5 {[%clk 0:02:41]}  dxe5 {[%clk 0:02:25]} 17. Ng1 {[%clk 0:02:38]}  Rf6 {[%clk 0:02:14]} 18. Nf3 {[%clk 0:02:22]}  Qe7 {[%clk 0:02:11]} 19. b4 {[%clk 0:02:18]}  axb4 {[%clk 0:02:07]} 20. Bxb4 {[%clk 0:02:16]}  Qe8 {[%clk 0:02:08]} 21. d4 {[%clk 0:02:08]}  exd4 {[%clk 0:01:57]} 22. exd4 {[%clk 0:02:05]}  f4 {[%clk 0:01:54]} 23. Re1 {[%clk 0:02:02]}  Qg8 {[%clk 0:01:40]} 24. Ne5 {[%clk 0:02:01]}  Be8 {[%clk 0:01:39]} 25. Qd3 {[%clk 0:01:41]}  fxg3 {[%clk 0:01:36]} 26. hxg3 {[%clk 0:01:33]}  Nxe5 {[%clk 0:01:32]} 27. dxe5 {[%clk 0:01:32]}  Bg6 {[%clk 0:01:27]} 28. Qc3 {[%clk 0:01:15]}  Rf2 {[%clk 0:01:21]} 29. Bc5 {[%clk 0:01:12]}  Ra2 {[%clk 0:00:31]} 30. e6 {[%clk 0:01:03]}  Qe8 {[%clk 0:00:30]} 31. Bxb6 {[%clk 0:00:53]}  cxb6 {[%clk 0:00:22]} 32. Qe5 {[%clk 0:00:49]}  R2xa3 {[%clk 0:00:12]} 33. Rc7 {[%clk 0:00:46]}  R3a5 {[%clk 0:00:12]} 34. Qxg7# {[%clk 0:00:45]} 1-0


[Site "https://www.chess.com"]

[Event "Titled Tuesday Blitz July 11 Late 2023"]
[White "Rustemov, Alexander"]
[Black "Przybylski, Wojciech"]
[WhiteFideId "4119002"]
[BlackFideId "1117599"]
[WhiteElo "2882"]
[BlackElo "2577"]
[Result "1-0"]
[Round "11"]
[TimeControl "180+2"]
[Date "2023.07.11"]
[WhiteClock "0:00:25"]
[BlackClock "0:00:00"]
[Board "28"]

1. d4 {[%clk 0:03:00]}  Nf6 {[%clk 0:02:59]} 2. c4 {[%clk 0:03:01]}  e6 {[%clk 0:02:59]} 3. Nf3 {[%clk 0:03:01]}  b6 {[%clk 0:02:59]} 4. a3 {[%clk 0:03:01]}  Be7 {[%clk 0:02:58]} 5. Nc3 {[%clk 0:02:59]}  Bb7 {[%clk 0:02:58]} 6. Qc2 {[%clk 0:02:57]}  d5 {[%clk 0:02:57]} 7. cxd5 {[%clk 0:02:55]}  Nxd5 {[%clk 0:02:56]} 8. e4 {[%clk 0:02:55]}  Nxc3 {[%clk 0:02:55]} 9. bxc3 {[%clk 0:02:56]}  O-O {[%clk 0:02:54]} 10. Bd3 {[%clk 0:02:57]}  h6 {[%clk 0:02:54]} 11. O-O {[%clk 0:02:57]}  c5 {[%clk 0:02:53]} 12. Bb2 {[%clk 0:02:56]}  Nc6 {[%clk 0:02:52]} 13. Rad1 {[%clk 0:02:56]}  Qc7 {[%clk 0:02:52]} 14. Qe2 {[%clk 0:02:55]}  Rad8 {[%clk 0:02:49]} 15. d5 {[%clk 0:02:53]}  exd5 {[%clk 0:02:47]} 16. exd5 {[%clk 0:02:53]}  Na5 {[%clk 0:02:46]} 17. c4 {[%clk 0:02:53]}  Bd6 {[%clk 0:02:45]} 18. Qe4 {[%clk 0:02:51]}  f5 {[%clk 0:02:44]} 19. Qe6+ {[%clk 0:02:49]}  Qf7 {[%clk 0:02:43]} 20. Rfe1 {[%clk 0:02:40]}  Qxe6 {[%clk 0:02:41]} 21. Rxe6 {[%clk 0:02:39]}  Bc8 {[%clk 0:02:10]} 22. Re2 {[%clk 0:02:26]}  Ba6 {[%clk 0:02:08]} 23. Rc1 {[%clk 0:02:08]}  Nb3 {[%clk 0:02:05]} 24. Rc3 {[%clk 0:02:01]}  Na5 {[%clk 0:02:03]} 25. g3 {[%clk 0:01:59]}  g6 {[%clk 0:01:54]} 26. Re6 {[%clk 0:01:56]}  Kh7 {[%clk 0:01:44]} 27. Nh4 {[%clk 0:01:55]}  Bc8 {[%clk 0:01:22]} 28. Rxg6 {[%clk 0:01:54]}  Be7 {[%clk 0:01:22]} 29. Rc2 {[%clk 0:01:38]}  Rf7 {[%clk 0:01:13]} 30. Re6 {[%clk 0:01:32]}  Bxh4 {[%clk 0:01:09]} 31. gxh4 {[%clk 0:01:25]}  Nb3 {[%clk 0:00:34]} 32. Re5 {[%clk 0:01:16]}  Nd4 {[%clk 0:00:33]} 33. Bxd4 {[%clk 0:01:13]}  cxd4 {[%clk 0:00:33]} 34. f3 {[%clk 0:01:01]}  Rg8+ {[%clk 0:00:30]} 35. Rg2 {[%clk 0:01:00]}  Rfg7 {[%clk 0:00:24]} 36. Rxg7+ {[%clk 0:00:59]}  Rxg7+ {[%clk 0:00:24]} 37. Kf2 {[%clk 0:01:00]}  Kg6 {[%clk 0:00:24]} 38. Kg3 {[%clk 0:00:53]}  Kf6+ {[%clk 0:00:21]} 39. Kf4 {[%clk 0:00:53]}  Rg2 {[%clk 0:00:16]} 40. Bxf5 {[%clk 0:00:53]}  Bxf5 {[%clk 0:00:06]} 41. Rxf5+ {[%clk 0:00:54]}  Ke7 {[%clk 0:00:07]} 42. Ke4 {[%clk 0:00:51]}  Rxh2 {[%clk 0:00:06]} 43. Rh5 {[%clk 0:00:49]}  Ra2 {[%clk 0:00:05]} 44. Kxd4 {[%clk 0:00:45]}  Rxa3 {[%clk 0:00:05]} 45. Rxh6 {[%clk 0:00:45]}  Rxf3 {[%clk 0:00:05]} 46. Rh7+ {[%clk 0:00:32]}  Kd6 {[%clk 0:00:05]} 47. Rxa7 {[%clk 0:00:30]}  Rf4+ {[%clk 0:00:05]} 48. Kc3 {[%clk 0:00:30]}  Rxh4 {[%clk 0:00:05]} 49. Rb7 {[%clk 0:00:29]}  Ke5 {[%clk 0:00:01]} 50. Rxb6 {[%clk 0:00:27]}  Rh3+ {[%clk 0:00:01]} 51. Kb4 {[%clk 0:00:27]}  Rh1 {[%clk 0:00:02]} 52. Kc5 {[%clk 0:00:27]}  Ra1 {[%clk 0:00:01]} 53. Re6+ {[%clk 0:00:26]}  Kf5 {[%clk 0:00:02]} 54. Re2 {[%clk 0:00:26]}  Ra8 {[%clk 0:00:01]} 55. Kd4 {[%clk 0:00:26]}  Ra1 {[%clk 0:00:01]} 56. Rf2+ {[%clk 0:00:26]}  Kg6 {[%clk 0:00:01]} 57. d6 {[%clk 0:00:26]}  Rd1+ {[%clk 0:00:01]} 58. Ke5 {[%clk 0:00:25]}  Re1+ {[%clk 0:00:01]} 59. Kd5 {[%clk 0:00:25]}  Rd1+ {[%clk 0:00:01]} 60. Kc6 {[%clk 0:00:25]}  Rc1 {[%clk 0:00:01]} 61. c5 {[%clk 0:00:26]}  Rc2 {[%clk 0:00:00]} 62. Rxc2 {[%clk 0:00:25]} 1-0


[Site "https://www.chess.com"]

[Event "Titled Tuesday Blitz July 11 Late 2023"]
[White "Karttunen, Mika"]
[Black "Morefield, Jason"]
[WhiteFideId "502081"]
[BlackFideId "30920825"]
[WhiteElo "2555"]
[BlackElo "2764"]
[Result "0-1"]
[Round "11"]
[TimeControl "180+2"]
[Date "2023.07.11"]
[WhiteClock "0:00:24"]
[BlackClock "0:00:28"]
[Board "29"]

1. e4 {[%clk 0:03:00]}  a6 {[%clk 0:02:58]} 2. d4 {[%clk 0:03:00]}  c6 {[%clk 0:02:58]} 3. Bd3 {[%clk 0:03:00]}  d5 {[%clk 0:02:58]} 4. e5 {[%clk 0:03:00]}  c5 {[%clk 0:02:52]} 5. dxc5 {[%clk 0:03:00]}  Nc6 {[%clk 0:02:48]} 6. f4 {[%clk 0:03:00]}  e6 {[%clk 0:02:45]} 7. c3 {[%clk 0:02:58]}  Bxc5 {[%clk 0:02:44]} 8. Nf3 {[%clk 0:02:58]}  Nge7 {[%clk 0:02:43]} 9. b4 {[%clk 0:02:58]}  Ba7 {[%clk 0:02:42]} 10. a3 {[%clk 0:02:55]}  Bd7 {[%clk 0:02:41]} 11. Bb2 {[%clk 0:02:55]}  Rc8 {[%clk 0:02:40]} 12. Qe2 {[%clk 0:02:53]}  Ng6 {[%clk 0:02:32]} 13. g3 {[%clk 0:02:52]}  O-O {[%clk 0:02:31]} 14. h4 {[%clk 0:02:53]}  f6 {[%clk 0:02:19]} 15. h5 {[%clk 0:02:50]}  Nge7 {[%clk 0:02:18]} 16. h6 {[%clk 0:02:40]}  g6 {[%clk 0:02:11]} 17. exf6 {[%clk 0:02:40]}  Rxf6 {[%clk 0:02:12]} 18. c4 {[%clk 0:02:36]}  Nf5 {[%clk 0:02:06]} 19. Bxf5 {[%clk 0:02:32]}  exf5 {[%clk 0:02:00]} 20. cxd5 {[%clk 0:02:20]}  Rf7 {[%clk 0:01:50]} 21. dxc6 {[%clk 0:01:25]}  Bxc6 {[%clk 0:01:51]} 22. Rh2 {[%clk 0:01:09]}  Bb5 {[%clk 0:01:22]} 23. Qe6 {[%clk 0:00:54]}  Rc6 {[%clk 0:01:03]} 24. Qb3 {[%clk 0:00:52]}  Kf8 {[%clk 0:00:34]} 25. Bg7+ {[%clk 0:00:48]}  Ke8 {[%clk 0:00:30]} 26. Ne5 {[%clk 0:00:24]}  Rc1+ {[%clk 0:00:28]} 0-1


[Site "https://www.chess.com"]

[Event "Titled Tuesday Blitz July 11 Late 2023"]
[White "Francisco Guecamburu, Candela Be"]
[Black "Rozman, Levy"]
[WhiteFideId "160911"]
[BlackFideId "2039877"]
[WhiteElo "2568"]
[BlackElo "2739"]
[Result "0-1"]
[Round "11"]
[TimeControl "180+2"]
[Date "2023.07.11"]
[WhiteClock "0:00:01"]
[BlackClock "0:00:20"]
[Board "30"]

1. e4 {[%clk 0:03:00]}  c6 {[%clk 0:02:47]} 2. d4 {[%clk 0:03:00]}  d5 {[%clk 0:02:46]} 3. e5 {[%clk 0:03:00]}  c5 {[%clk 0:02:47]} 4. dxc5 {[%clk 0:03:01]}  e6 {[%clk 0:02:47]} 5. a3 {[%clk 0:02:59]}  Bxc5 {[%clk 0:02:48]} 6. b4 {[%clk 0:03:00]}  Be7 {[%clk 0:02:48]} 7. Bb2 {[%clk 0:02:59]}  a5 {[%clk 0:02:49]} 8. b5 {[%clk 0:02:59]}  Nd7 {[%clk 0:02:50]} 9. Nf3 {[%clk 0:02:55]}  f6 {[%clk 0:02:51]} 10. Bd3 {[%clk 0:02:52]}  Nh6 {[%clk 0:02:50]} 11. c4 {[%clk 0:02:47]}  Nc5 {[%clk 0:02:47]} 12. O-O {[%clk 0:02:42]}  Nf7 {[%clk 0:02:45]} 13. Qe2 {[%clk 0:02:24]}  O-O {[%clk 0:02:02]} 14. Rd1 {[%clk 0:02:06]}  fxe5 {[%clk 0:01:52]} 15. Nxe5 {[%clk 0:02:03]}  Nxe5 {[%clk 0:01:51]} 16. Bxe5 {[%clk 0:01:38]}  Bf6 {[%clk 0:01:45]} 17. Nc3 {[%clk 0:01:29]}  d4 {[%clk 0:01:37]} 18. Bxf6 {[%clk 0:00:30]}  Qxf6 {[%clk 0:01:36]} 19. Ne4 {[%clk 0:00:31]}  Nxe4 {[%clk 0:01:21]} 20. Qxe4 {[%clk 0:00:29]}  g6 {[%clk 0:01:16]} 21. Re1 {[%clk 0:00:13]}  Bd7 {[%clk 0:01:15]} 22. f3 {[%clk 0:00:08]}  b6 {[%clk 0:01:13]} 23. Qe5 {[%clk 0:00:08]}  Rad8 {[%clk 0:01:10]} 24. Qxf6 {[%clk 0:00:07]}  Rxf6 {[%clk 0:01:11]} 25. Re5 {[%clk 0:00:08]}  Kf7 {[%clk 0:01:00]} 26. Rae1 {[%clk 0:00:09]}  Be8 {[%clk 0:00:49]} 27. c5 {[%clk 0:00:05]}  bxc5 {[%clk 0:00:49]} 28. Rxc5 {[%clk 0:00:06]}  Ke7 {[%clk 0:00:45]} 29. Rc7+ {[%clk 0:00:05]}  Kd6 {[%clk 0:00:45]} 30. b6 {[%clk 0:00:05]}  Rb8 {[%clk 0:00:44]} 31. Rb1 {[%clk 0:00:03]}  Rxb6 {[%clk 0:00:44]} 32. Rxb6+ {[%clk 0:00:04]}  Kxc7 {[%clk 0:00:45]} 33. Ra6 {[%clk 0:00:05]}  Bc6 {[%clk 0:00:40]} 34. Rxa5 {[%clk 0:00:05]}  Kd6 {[%clk 0:00:40]} 35. Ra7 {[%clk 0:00:04]}  e5 {[%clk 0:00:39]} 36. Ra6 {[%clk 0:00:04]}  Kc5 {[%clk 0:00:37]} 37. Ra5+ {[%clk 0:00:04]}  Kd6 {[%clk 0:00:36]} 38. Ra6 {[%clk 0:00:05]}  Re6 {[%clk 0:00:36]} 39. Bc4 {[%clk 0:00:04]}  Re7 {[%clk 0:00:36]} 40. Bb5 {[%clk 0:00:04]}  Rc7 {[%clk 0:00:36]} 41. Bd3 {[%clk 0:00:04]}  Rb7 {[%clk 0:00:30]} 42. Kf2 {[%clk 0:00:03]}  Rb2+ {[%clk 0:00:30]} 43. Kg3 {[%clk 0:00:04]}  Kc5 {[%clk 0:00:27]} 44. Ra5+ {[%clk 0:00:03]}  Kd6 {[%clk 0:00:25]} 45. Ra6 {[%clk 0:00:04]}  Kc7 {[%clk 0:00:25]} 46. Ra7+ {[%clk 0:00:04]}  Kb6 {[%clk 0:00:22]} 47. Ra6+ {[%clk 0:00:03]}  Kb7 {[%clk 0:00:22]} 48. Ra5 {[%clk 0:00:04]}  Rb3 {[%clk 0:00:21]} 49. Bc4 {[%clk 0:00:04]}  Rc3 {[%clk 0:00:21]} 50. Bb5 {[%clk 0:00:01]}  Kb6 {[%clk 0:00:20]} 0-1


[Site "https://www.chess.com"]

[Event "Titled Tuesday Blitz July 11 Late 2023"]
[White "Chor, Kevin"]
[Black "Jarovinsky, Alexey"]
[WhiteFideId "2090740"]
[BlackFideId "14115131"]
[WhiteElo "2552"]
[BlackElo "2711"]
[Result "0-1"]
[Round "11"]
[TimeControl "180+2"]
[Date "2023.07.11"]
[WhiteClock "0:00:13"]
[BlackClock "0:00:07"]
[Board "31"]

1. e4 {[%clk 0:02:54]}  Nc6 {[%clk 0:02:45]} 2. Nf3 {[%clk 0:02:54]}  d6 {[%clk 0:02:44]} 3. Bc4 {[%clk 0:02:47]}  Nf6 {[%clk 0:02:43]} 4. d3 {[%clk 0:02:47]}  g6 {[%clk 0:02:33]} 5. O-O {[%clk 0:02:42]}  Bg7 {[%clk 0:02:33]} 6. Nbd2 {[%clk 0:02:42]}  Na5 {[%clk 0:02:29]} 7. Re1 {[%clk 0:02:25]}  O-O {[%clk 0:02:27]} 8. h3 {[%clk 0:02:23]}  e5 {[%clk 0:02:25]} 9. a4 {[%clk 0:02:19]}  Nxc4 {[%clk 0:02:24]} 10. Nxc4 {[%clk 0:02:20]}  h6 {[%clk 0:02:13]} 11. c3 {[%clk 0:02:14]}  Re8 {[%clk 0:02:11]} 12. Qc2 {[%clk 0:01:58]}  b6 {[%clk 0:02:03]} 13. Bd2 {[%clk 0:01:47]}  a6 {[%clk 0:02:00]} 14. Rad1 {[%clk 0:01:38]}  Bb7 {[%clk 0:02:00]} 15. Bc1 {[%clk 0:01:35]}  Qd7 {[%clk 0:01:59]} 16. b3 {[%clk 0:01:29]}  Re7 {[%clk 0:01:50]} 17. Ne3 {[%clk 0:01:25]}  Rf8 {[%clk 0:01:44]} 18. Nf1 {[%clk 0:01:14]}  Nh5 {[%clk 0:01:39]} 19. d4 {[%clk 0:01:08]}  exd4 {[%clk 0:01:34]} 20. cxd4 {[%clk 0:01:02]}  f5 {[%clk 0:01:28]} 21. N1d2 {[%clk 0:00:42]}  fxe4 {[%clk 0:01:21]} 22. Nxe4 {[%clk 0:00:42]}  Qf5 {[%clk 0:01:10]} 23. Nh4 {[%clk 0:00:20]}  Qf7 {[%clk 0:00:57]} 24. Ng3 {[%clk 0:00:20]}  Rxe1+ {[%clk 0:00:48]} 25. Rxe1 {[%clk 0:00:20]}  Bxd4 {[%clk 0:00:45]} 26. Be3 {[%clk 0:00:14]}  Bxe3 {[%clk 0:00:41]} 27. Rxe3 {[%clk 0:00:15]}  Nf4 {[%clk 0:00:39]} 28. Ne4 {[%clk 0:00:09]}  g5 {[%clk 0:00:32]} 29. Nf3 {[%clk 0:00:07]}  Qg6 {[%clk 0:00:17]} 30. Nfd2 {[%clk 0:00:03]}  d5 {[%clk 0:00:16]} 31. Qxc7 {[%clk 0:00:02]}  Qg7 {[%clk 0:00:10]} 32. Qxg7+ {[%clk 0:00:02]}  Kxg7 {[%clk 0:00:10]} 33. Nd6 {[%clk 0:00:02]}  Bc6 {[%clk 0:00:09]} 34. Nf3 {[%clk 0:00:03]}  Rd8 {[%clk 0:00:07]} 35. Nf5+ {[%clk 0:00:03]}  Kf6 {[%clk 0:00:05]} 36. Nxh6 {[%clk 0:00:04]}  d4 {[%clk 0:00:05]} 37. Ng4+ {[%clk 0:00:04]}  Kg7 {[%clk 0:00:03]} 38. Re7+ {[%clk 0:00:04]}  Kf8 {[%clk 0:00:03]} 39. Rc7 {[%clk 0:00:04]}  Bxf3 {[%clk 0:00:03]} 40. gxf3 {[%clk 0:00:04]}  d3 {[%clk 0:00:03]} 41. Ne5 {[%clk 0:00:03]}  d2 {[%clk 0:00:03]} 42. Nd7+ {[%clk 0:00:02]}  Ke7 {[%clk 0:00:02]} 43. Nc5+ {[%clk 0:00:01]}  Kd6 {[%clk 0:00:02]} 44. Ne4+ {[%clk 0:00:01]}  Kxc7 {[%clk 0:00:01]} 45. Nxg5 {[%clk 0:00:02]}  d1=Q+ {[%clk 0:00:01]} 46. Kh2 {[%clk 0:00:03]}  Qe2 {[%clk 0:00:01]} 47. Kg3 {[%clk 0:00:04]}  Nd3 {[%clk 0:00:01]} 48. Kg4 {[%clk 0:00:04]}  Rd7 {[%clk 0:00:02]} 49. Ne6+ {[%clk 0:00:05]}  Kb7 {[%clk 0:00:03]} 50. Nf4 {[%clk 0:00:05]}  Nxf4 {[%clk 0:00:02]} 51. Kh4 {[%clk 0:00:06]}  Qxf2+ {[%clk 0:00:02]} 52. Kg5 {[%clk 0:00:06]}  Qe2 {[%clk 0:00:03]} 53. Kh6 {[%clk 0:00:07]}  Qd2 {[%clk 0:00:03]} 54. Kg5 {[%clk 0:00:07]}  Qd3 {[%clk 0:00:04]} 55. Kf6 {[%clk 0:00:08]}  Qd4+ {[%clk 0:00:05]} 56. Kg5 {[%clk 0:00:09]}  Qe5+ {[%clk 0:00:05]} 57. Kh4 {[%clk 0:00:10]}  Rh7+ {[%clk 0:00:05]} 58. Kg3 {[%clk 0:00:11]}  Qe3 {[%clk 0:00:05]} 59. Kg4 {[%clk 0:00:11]}  Rg7+ {[%clk 0:00:06]} 60. Kf5 {[%clk 0:00:11]}  Qe6+ {[%clk 0:00:06]} 61. Kxf4 {[%clk 0:00:12]}  Rf7+ {[%clk 0:00:06]} 62. Kg3 {[%clk 0:00:13]}  Qf5 {[%clk 0:00:06]} 63. Kg2 {[%clk 0:00:12]}  Qxf3+ {[%clk 0:00:07]} 64. Kh2 {[%clk 0:00:13]}  Qf2+ {[%clk 0:00:07]} 65. Kh1 {[%clk 0:00:14]}  Qg3 {[%clk 0:00:06]} 66. h4 {[%clk 0:00:13]}  Rf1# {[%clk 0:00:07]} 0-1


[Site "https://www.chess.com"]

[Event "Titled Tuesday Blitz July 11 Late 2023"]
[White "Rastbod, Ali"]
[Black "Jovic, Stanoje"]
[WhiteFideId "12567477"]
[BlackFideId "905020"]
[WhiteElo "2684"]
[BlackElo "2541"]
[Result "1-0"]
[Round "11"]
[TimeControl "180+2"]
[Date "2023.07.11"]
[WhiteClock "0:00:15"]
[BlackClock "0:00:00"]
[Board "32"]

1. Nf3 {[%clk 0:02:39]}  Nf6 {[%clk 0:02:58]} 2. g3 {[%clk 0:02:39]}  d5 {[%clk 0:02:56]} 3. Bg2 {[%clk 0:02:39]}  Bg4 {[%clk 0:02:56]} 4. O-O {[%clk 0:02:39]}  Nbd7 {[%clk 0:02:56]} 5. h3 {[%clk 0:02:38]}  Bxf3 {[%clk 0:02:55]} 6. Bxf3 {[%clk 0:02:36]}  e5 {[%clk 0:02:55]} 7. c4 {[%clk 0:02:35]}  c6 {[%clk 0:02:55]} 8. cxd5 {[%clk 0:02:35]}  cxd5 {[%clk 0:02:55]} 9. Nc3 {[%clk 0:02:35]}  e4 {[%clk 0:02:53]} 10. Bg2 {[%clk 0:02:35]}  Be7 {[%clk 0:02:48]} 11. d3 {[%clk 0:02:35]}  Nc5 {[%clk 0:02:38]} 12. b4 {[%clk 0:02:17]}  Ne6 {[%clk 0:02:34]} 13. dxe4 {[%clk 0:02:15]}  dxe4 {[%clk 0:02:26]} 14. Nxe4 {[%clk 0:02:04]}  O-O {[%clk 0:02:24]} 15. a3 {[%clk 0:01:59]}  a5 {[%clk 0:02:20]} 16. b5 {[%clk 0:01:55]}  a4 {[%clk 0:02:16]} 17. Bb2 {[%clk 0:01:54]}  Nxe4 {[%clk 0:02:10]} 18. Bxe4 {[%clk 0:01:55]}  Qb6 {[%clk 0:02:07]} 19. Rb1 {[%clk 0:01:28]}  Rfd8 {[%clk 0:02:06]} 20. Qc2 {[%clk 0:01:21]}  h6 {[%clk 0:02:05]} 21. Kg2 {[%clk 0:01:12]}  Nd4 {[%clk 0:01:55]} 22. Qc4 {[%clk 0:01:06]}  Bf6 {[%clk 0:01:45]} 23. e3 {[%clk 0:01:02]}  Re8 {[%clk 0:01:04]} 24. Bd5 {[%clk 0:00:52]}  Ne6 {[%clk 0:01:02]} 25. Bxf6 {[%clk 0:00:50]}  gxf6 {[%clk 0:01:03]} 26. Qg4+ {[%clk 0:00:47]}  Kf8 {[%clk 0:01:00]} 27. Qh4 {[%clk 0:00:42]}  Kg7 {[%clk 0:00:58]} 28. Rb4 {[%clk 0:00:41]}  f5 {[%clk 0:00:55]} 29. Qh5 {[%clk 0:00:39]}  Rad8 {[%clk 0:00:31]} 30. Qxf5 {[%clk 0:00:38]}  Ng5 {[%clk 0:00:24]} 31. h4 {[%clk 0:00:33]}  Ne6 {[%clk 0:00:22]} 32. Rd1 {[%clk 0:00:31]}  Rc8 {[%clk 0:00:18]} 33. Rg4+ {[%clk 0:00:31]}  Kf8 {[%clk 0:00:18]} 34. Qf6 {[%clk 0:00:29]}  Rc2 {[%clk 0:00:15]} 35. Qxh6+ {[%clk 0:00:26]}  Ke7 {[%clk 0:00:15]} 36. Qh7 {[%clk 0:00:19]}  Qxe3 {[%clk 0:00:13]} 37. Qxc2 {[%clk 0:00:17]}  Qe5 {[%clk 0:00:12]} 38. Re4 {[%clk 0:00:15]}  Qf6 {[%clk 0:00:09]} 39. Bxe6 {[%clk 0:00:15]}  fxe6 {[%clk 0:00:00]} 40. Qc7+ {[%clk 0:00:15]} 1-0


[Site "https://www.chess.com"]